fUSD/lending_fUSD_20250629
["ID","MTS","AMOUNT","RATE_DAILY","PERIOD"]
[368605127,1751230232289,-169.0,0.00018935,2]
[368605128,1751230232298,-1000.0,0.00018983,2]
[368605129,1751230232308,-150.0,0.00019072,2]
[368605130,1751230232318,-2645.66337623,0.0001908,2]
[368605131,1751230232330,-580.66388372,0.0001908,2]
[368605132,1751230232350,-5263.24478952,0.0001908,2]
[368605133,1751230232362,-3055.14,0.00019081,2]
[368605134,1751230232372,-166.96,0.00019099,2]
[368605135,1751230232383,-2914.65521048,0.000191,2]
[368605138,1751230232403,-461.6226999,0.000191,2]
[368605140,1751230232416,-271.414428,0.000191,2]
[368605142,1751230232427,-597.34073294,0.000191,2]
[368605163,1751230238245,-80.22271702,0.000191,2]
[368605164,1751230238259,-320.69891374,0.000191,2]
[368605165,1751230238321,-3.64399117,0.000191,2]
[368605347,1751230240204,-2665.0930684,0.000191,2]
[368605354,1751230240262,-22700.66476487,0.000191,2]
[368606377,1751230689341,211.52,0.00013699,2]
[368606379,1751230775769,150.0,0.000141,2]
[368606394,1751231432317,-13097.0,0.000166,2]
[368606395,1751231432327,-509.0,0.00017045,2]
[368606396,1751231432336,-5509.0,0.000171,3]
[368606397,1751231432346,-5509.0,0.000175,5]
[368606398,1751231432355,-4999.38723301,0.00018304,2]
[368606399,1751231432402,-4477.77434338,0.00018304,2]
[368606400,1751231432575,-3848.5305648,0.00018304,2]
[368606718,1751231440893,-6441.0,0.00018304,2]
[368607254,1751231446429,-485.485,0.00018212,2]
[368607533,1751231707827,336.11,0.0002739,120]
[368607534,1751231799902,150.0,0.0002739,120]
[368607537,1751231850794,208.61,0.00013699,2]
[368607541,1751232308185,13641.88784495,0.00014,2]
[368607542,1751232308210,40000.0,0.00014,2]
[368607543,1751232308236,40000.0,0.00014,2]
[368607544,1751232308262,40000.0,0.00014,2]
[368607545,1751232308294,6358.11215505,0.00014,2]
[368607564,1751232631428,-250.0,0.00015,2]
[368607565,1751232631437,-1000.0,0.00015022,3]
[368607566,1751232631446,-531.0,0.00015045,2]
[368607567,1751232631455,-250.0,0.00015546,2]
[368607568,1751232631465,-351.82369665,0.00015658,2]
[368607569,1751232631475,-1000.0,0.00016154,3]
[368607570,1751232631484,-2500.0,0.000165,2]
[368607571,1751232631494,-1000.0,0.000165,3]
[368607572,1751232631503,-290.01923598,0.000165,2]
[368607573,1751232631522,-738.51508562,0.000165,2]
[368607574,1751232631547,-283.80482947,0.000165,2]
[368607575,1751232631560,-394.93165306,0.000165,2]
[368607576,1751232631572,-792.72919587,0.000165,2]
[368607577,1751232631582,-1000.0,0.000165,3]
[368607578,1751232631591,-215.0,0.00017021,2]
[368607579,1751232631600,-2426.82,0.00017108,2]
[368607580,1751232631609,-250.0,0.00017134,2]
[368607581,1751232631619,-10579.46,0.00017194,2]
[368607582,1751232631628,-3070.86,0.00017198,2]
[368607583,1751232631637,-4202.09,0.00017339,2]
[368607584,1751232631647,-200.0,0.00017472,2]
[368607585,1751232631656,-485.0,0.00017477,3]
[368607586,1751232631666,-11929.29,0.0001749,2]
[368607587,1751232631676,-300.0,0.00017521,2]
[368607588,1751232631685,-205.99,0.00017521,2]
[368607589,1751232631695,-202.26,0.00017522,2]
[368607590,1751232631705,-200.0,0.00017538,7]
[368607591,1751232631714,-300.0,0.00017538,7]
[368607592,1751232631724,-662.47,0.00017542,2]
[368607593,1751232631733,-916.67480329,0.00017639,2]
[368607594,1751232631742,-2500.0,0.00017649,2]
[368607595,1751232631751,-1000.0,0.00017649,3]
[368607596,1751232631760,-167.01,0.00017685,2]
[368607597,1751232631770,-799.39,0.000177,2]
[368607598,1751232631779,-462.59,0.000177,2]
[368607599,1751232631789,-167.01,0.00017703,2]
[368607600,1751232631799,-167.01,0.00017721,2]
[368607601,1751232631808,-167.01,0.00017738,2]
[368607602,1751232631818,-167.01,0.00017756,2]
[368607603,1751232631828,-167.01,0.00017774,2]
[368607605,1751232631837,-151.0,0.00017854,2]
[368607607,1751232631847,-450.0,0.0001789,2]
[368607609,1751232631856,-9331.71,0.00017947,2]
[368607610,1751232631866,-167.96,0.00017956,2]
[368607611,1751232631875,-166.95,0.0001796,2]
[368607612,1751232631885,-1000.0,0.00018051,2]
[368607613,1751232631894,-4102.95214672,0.0001813,2]
[368607614,1751232631906,-13977.59166174,0.0001813,2]
[368607615,1751232631945,-252.82824404,0.0001813,2]
[368607621,1751232637330,-704.27,0.0001813,2]
[368607622,1751232637387,-336.11106457,0.0001813,2]
[368607623,1751232637607,-488.66430191,0.0001813,2]
[368608739,1751232835730,1151.92593689,0.00027397,120]
[368608741,1751232846441,216.75,0.00013699,2]
[368608751,1751233165473,507.0,0.00014045,2]
[368608754,1751233831767,-280.53201382,0.00015308,2]
[368608755,1751233831776,-1121.00592721,0.00015308,2]
[368608756,1751233831785,-1000.0,0.00015559,3]
[368608757,1751233831795,-167.74927126,0.00015963,2]
[368608758,1751233831804,-1200.0,0.00016465,2]
[368608759,1751233831814,-3545.457145,0.00016466,2]
[368608760,1751233831823,-200.0,0.00016548,2]
[368608761,1751233831832,-2500.0,0.00016549,2]
[368608762,1751233831841,-1000.0,0.00016549,3]
[368608763,1751233831851,-507.0,0.0001658,2]
[368608764,1751233831860,-1000.0,0.00016647,2]
[368608765,1751233831869,-2751.0,0.0001665,2]
[368608766,1751233831878,-250.0,0.00016696,2]
[368608767,1751233831887,-2125.99,0.00016739,2]
[368608768,1751233831897,-151.0,0.00016747,2]
[368608769,1751233831907,-151.0,0.00016747,2]
[368608770,1751233831916,-151.0,0.00016747,2]
[368608771,1751233831925,-151.0,0.00016747,2]
[368608772,1751233831935,-151.0,0.00016747,2]
[368608773,1751233831944,-151.0,0.00016747,2]
[368608774,1751233831953,-151.0,0.00016747,2]
[368608775,1751233831962,-151.0,0.00016747,2]
[368608776,1751233831971,-151.0,0.00016747,2]
[368608777,1751233831980,-151.0,0.00016747,2]
[368608778,1751233831989,-151.0,0.00016747,2]
[368608779,1751233831998,-151.0,0.00016747,2]
[368608780,1751233832007,-151.0,0.00016747,2]
[368608781,1751233832016,-151.0,0.00016747,2]
[368608782,1751233832025,-151.0,0.00016747,2]
[368608783,1751233832035,-151.0,0.00016747,2]
[368608784,1751233832044,-151.0,0.00016747,2]
[368608785,1751233832054,-151.0,0.00016747,2]
[368608786,1751233832063,-151.0,0.00016747,2]
[368608787,1751233832072,-151.0,0.00016747,2]
[368608790,1751233832082,-23900.0,0.00016757,2]
[368608792,1751233832092,-1000.0,0.00017029,3]
[368608794,1751233832101,-233.83071042,0.00017091,2]
[368608796,1751233832110,-182.0,0.00017091,2]
[368608798,1751233832119,-1000.0,0.00017213,2]
[368608800,1751233832128,-166.52,0.00017216,2]
[368608802,1751233832137,-276.05,0.00017349,2]
[368608805,1751233832147,-157.06,0.00017434,2]
[368608808,1751233832156,-157.06,0.00017442,2]
[368608811,1751233832166,-157.06,0.00017451,2]
[368608814,1751233832175,-157.06,0.0001746,2]
[368608817,1751233832184,-157.06,0.00017468,2]
[368608820,1751233832193,-157.06,0.00017477,2]
[368608823,1751233832201,-157.06,0.00017486,2]
[368608826,1751233832210,-157.06,0.00017495,2]
[368608828,1751233832219,-2000.0,0.000175,2]
[368608830,1751233832228,-157.06,0.00017503,2]
[368608832,1751233832238,-157.06,0.00017512,2]
[368608835,1751233832247,-157.06,0.00017521,2]
[368608838,1751233832256,-150.0,0.00017524,2]
[368608841,1751233832265,-150.0,0.00017637,2]
[368608844,1751233832274,-167.74927126,0.00017647,2]
[368608847,1751233832283,-168.44,0.00017695,2]
[368608850,1751233832292,-856.27,0.00017697,2]
[368608853,1751233832301,-251.05635491,0.00017747,2]
[368608857,1751233832312,-1078.077,0.00017747,2]
[368608865,1751233832380,-1004.13664509,0.00017747,2]
[368608867,1751233832389,-355.6,0.00017747,2]
[368608869,1751233832398,-500.0,0.00017939,2]
[368608871,1751233832407,-1090.03747142,0.00017939,2]
[368608873,1751233832421,-817.96252858,0.00017939,2]
[368608875,1751233832430,-500.0,0.00017939,2]
[368608877,1751233832439,-140.92334892,0.00017939,2]
[368608878,1751233832450,-778.21598,0.00017939,2]
[368608879,1751233832461,-2014.86067108,0.00017939,2]
[368608881,1751233832470,-152.88570535,0.00017939,2]
[368608882,1751233832479,-372.93076807,0.0001795,2]
[368608885,1751233832491,-3112.5828675,0.0001795,2]
[368608887,1751233832503,-1441.35,0.0001795,2]
[368608889,1751233832518,-1805.06773982,0.0001795,2]
[368608891,1751233832529,-356.9270133,0.0001795,2]
[368608903,1751233837622,-496.79,0.0001795,2]
[368608904,1751233837633,-5957.6959403,0.0001795,2]
[368608905,1751233837648,-1261.3879605,0.0001795,2]
[368608906,1751233837657,-151.0,0.0001795,2]
[368608907,1751233837666,-151.0,0.0001795,2]
[368608908,1751233837675,-151.0,0.0001795,2]
[368608909,1751233837684,-9082.84793759,0.00018,2]
[368608910,1751233837693,-1680.0,0.00018083,2]
[368608911,1751233837703,-500.0,0.0001812,2]
[368608912,1751233837712,-150.0,0.0001812,2]
[368608913,1751233837721,-150.0,0.0001812,2]
[368608914,1751233837730,-150.0,0.0001812,2]
[368608915,1751233837739,-500.0,0.0001812,2]
[368608916,1751233837748,-150.0,0.0001812,2]
[368608917,1751233837758,-500.0,0.0001812,2]
[368608918,1751233837768,-546.0,0.0001812,2]
[368608919,1751233837777,-150.91381745,0.0001812,2]
[368608920,1751233837787,-150.0,0.0001812,2]
[368608921,1751233837796,-150.0,0.0001812,2]
[368608922,1751233837805,-150.0,0.0001812,2]
[368608923,1751233837814,-151.0,0.0001813,2]
[368608924,1751233837823,-151.484049,0.0001813,2]
[368608925,1751233837832,-151.0,0.0001813,2]
[368608926,1751233837842,-151.0,0.0001813,2]
[368608927,1751233837852,-151.0,0.0001813,2]
[368608928,1751233837861,-4908.29119,0.0001813,2]
[368608929,1751233837870,-251.717776,0.0001813,2]
[368608930,1751233837880,-1202.0,0.0001813,2]
[368608931,1751233837889,-1202.0,0.0001813,2]
[368608932,1751233837899,-1202.0,0.0001813,2]
[368608933,1751233837908,-5134.6913932,0.00018148,2]
[368608934,1751233837918,-166.52,0.00018163,2]
[368608935,1751233837927,-150.0,0.00018172,2]
[368608936,1751233837937,-1677.11023916,0.00018195,2]
[368608937,1751233837946,-4411.41595658,0.00018195,2]
[368608938,1751233837955,-500.0,0.00018213,2]
[368608940,1751233837964,-1908.0,0.00018213,2]
[368608942,1751233837974,-500.0,0.00018213,2]
[368608944,1751233837983,-2934.0,0.00018213,2]
[368608946,1751233837993,-151.0,0.00018246,2]
[368608948,1751233838002,-151.0,0.00018258,2]
[368608950,1751233838011,-23470.90443034,0.00018295,2]
[368608960,1751233838094,-547.82132189,0.00018295,2]
[368609002,1751233839832,-151.0,0.0001795,2]
[368609003,1751233839842,-151.0,0.0001813,2]
[368609004,1751233839851,-151.0,0.00018213,2]
[368609005,1751233839861,-435.7988741,0.00018295,2]
[368609253,1751233877679,221.53,0.00013699,2]
[368609254,1751234068055,218.5,0.00027397,120]
[368609275,1751235031864,-250.0,0.00015,2]
[368609276,1751235031874,-507.0,0.00016198,2]
[368609277,1751235031884,-300.0,0.000165,2]
[368609278,1751235031893,-300.0,0.000165,2]
[368609279,1751235031903,-1000.0,0.00016858,2]
[368609280,1751235031920,-250.0,0.00016878,2]
[368609281,1751235031933,-200.0,0.00016878,2]
[368609282,1751235031943,-2751.0,0.0001697,2]
[368609283,1751235031954,-200.0,0.00017017,2]
[368609284,1751235031964,-203.5675578,0.0001702,2]
[368609285,1751235031975,-776.4,0.00017061,2]
[368609286,1751235031985,-1200.0,0.00017119,2]
[368609287,1751235031995,-1952.45,0.0001712,2]
[368609288,1751235032006,-300.0,0.00017158,2]
[368609289,1751235032016,-550.0,0.00017159,2]
[368609290,1751235032026,-151.0,0.0001716,2]
[368609291,1751235032036,-151.0,0.0001716,2]
[368609292,1751235032047,-151.0,0.0001716,2]
[368609293,1751235032056,-151.0,0.0001716,2]
[368609294,1751235032066,-151.0,0.0001716,2]
[368609295,1751235032076,-151.0,0.0001716,2]
[368609296,1751235032086,-151.0,0.0001716,2]
[368609297,1751235032096,-151.0,0.0001716,2]
[368609298,1751235032106,-151.0,0.0001716,2]
[368609299,1751235032116,-151.0,0.0001716,2]
[368609300,1751235032125,-151.0,0.0001716,2]
[368609301,1751235032135,-151.0,0.0001716,2]
[368609302,1751235032145,-151.0,0.0001716,2]
[368609303,1751235032155,-151.0,0.0001716,2]
[368609304,1751235032165,-151.0,0.0001716,2]
[368609305,1751235032175,-151.0,0.0001716,2]
[368609306,1751235032185,-151.0,0.0001716,2]
[368609307,1751235032196,-151.0,0.0001716,2]
[368609308,1751235032206,-151.0,0.0001716,2]
[368609309,1751235032215,-193.5624891,0.0001716,2]
[368609310,1751235032225,-231.39218571,0.0001717,2]
[368609311,1751235032269,-404.29429912,0.0001717,2]
[368609312,1751235032281,-23264.31351517,0.0001717,2]
[368609313,1751235032290,-6636.58,0.00017186,2]
[368609314,1751235032300,-169.68981437,0.00017224,2]
[368609315,1751235032309,-168.81,0.00017229,2]
[368609316,1751235032319,-2000.0,0.000173,2]
[368609317,1751235032328,-2854.65,0.00017358,2]
[368609318,1751235032338,-200.0,0.00017401,7]
[368609319,1751235032347,-175.0,0.00017476,2]
[368609320,1751235032357,-150.0,0.00017478,2]
[368609321,1751235032366,-150.76,0.00017478,2]
[368609322,1751235032375,-695.0,0.00017549,2]
[368609323,1751235032385,-602.0,0.00017582,2]
[368609324,1751235032395,-163.85,0.00017637,2]
[368609325,1751235032405,-163.85,0.00017637,2]
[368609326,1751235032415,-288.71,0.00017637,2]
[368609327,1751235032424,-456.25,0.00017637,2]
[368609328,1751235032434,-300.0,0.00017637,2]
[368609329,1751235032444,-169.06,0.00017649,2]
[368609330,1751235032453,-171.21,0.00017678,2]
[368609331,1751235032463,-342.42,0.00017778,2]
[368609332,1751235032472,-456.25,0.00017778,2]
[368609333,1751235032481,-798.57,0.00017831,2]
[368609334,1751235032491,-462.71,0.00017831,2]
[368609335,1751235032500,-816.17551909,0.00017848,2]
[368609336,1751235032510,-462.71,0.00017851,2]
[368609337,1751235032519,-462.71,0.00017851,2]
[368609338,1751235032529,-355.6,0.000179,2]
[368609339,1751235032538,-520.568339,0.00017937,2]
[368609340,1751235032547,-491.349388,0.0001795,2]
[368609341,1751235032556,-491.349388,0.0001795,2]
[368609342,1751235032566,-151.0,0.0001795,2]
[368609343,1751235032575,-151.0,0.0001795,2]
[368609344,1751235032584,-151.0,0.0001795,2]
[368609345,1751235032594,-151.0,0.0001795,2]
[368609346,1751235032603,-151.0,0.0001795,2]
[368609347,1751235032613,-151.0,0.0001795,2]
[368609348,1751235032623,-159.14182,0.0001795,2]
[368609349,1751235032632,-151.0,0.0001795,2]
[368609350,1751235032642,-1863.346106,0.0001795,2]
[368609351,1751235032651,-1863.346106,0.0001795,2]
[368609352,1751235032661,-151.0,0.0001795,2]
[368609353,1751235032671,-151.0,0.0001795,2]
[368609354,1751235032680,-151.0,0.0001795,2]
[368609355,1751235032690,-151.0,0.0001795,2]
[368609356,1751235032699,-151.0,0.0001795,2]
[368609357,1751235032709,-151.0,0.0001795,2]
[368609358,1751235032720,-463.96139,0.0001795,2]
[368609359,1751235032732,-463.96139,0.0001795,2]
[368609360,1751235032743,-621.0,0.00017958,2]
[368609361,1751235032754,-151.0,0.00018,2]
[368609362,1751235032763,-207.614116,0.00018,2]
[368609363,1751235032773,-133.5411634,0.00018,2]
[368609364,1751235032807,-17.4588366,0.00018,2]
[368609365,1751235032817,-271.019748,0.00018,2]
[368609366,1751235032827,-85.2618474,0.00018,2]
[368609367,1751235032862,-185.7579006,0.00018,2]
[368609368,1751235032872,-302.94321986,0.00018068,2]
[368609369,1751235032887,-349.05678014,0.00018068,2]
[368609370,1751235032897,-1.78278935,0.00018082,2]
[368609371,1751235032908,-353.81721065,0.00018082,2]
[368609372,1751235032917,-355.6,0.00018082,2]
[368609373,1751235032927,-355.6,0.00018082,2]
[368609374,1751235032936,-355.6,0.00018082,2]
[368609375,1751235032946,-491.349388,0.0001813,2]
[368609376,1751235032956,-491.349388,0.0001813,2]
[368609377,1751235032966,-151.0,0.0001813,2]
[368609378,1751235032975,-151.0,0.0001813,2]
[368609379,1751235032985,-156.543852,0.0001813,2]
[368609380,1751235032995,-151.0,0.0001813,2]
[368609381,1751235033004,-228.486498,0.0001813,2]
[368609382,1751235033014,-151.0,0.0001813,2]
[368609383,1751235033024,-151.0,0.0001813,2]
[368609384,1751235033034,-1863.346106,0.0001813,2]
[368609385,1751235033044,-1863.346106,0.0001813,2]
[368609386,1751235033054,-151.0,0.0001813,2]
[368609387,1751235033063,-151.0,0.0001813,2]
[368609388,1751235033074,-151.0,0.0001813,2]
[368609389,1751235033084,-151.0,0.0001813,2]
[368609390,1751235033094,-151.0,0.0001813,2]
[368609391,1751235033104,-151.0,0.0001813,2]
[368609392,1751235033115,-463.96139,0.0001813,2]
[368609393,1751235033125,-463.96139,0.0001813,2]
[368609394,1751235033135,-151.0,0.00018148,2]
[368609395,1751235033145,-151.0,0.00018148,2]
[368609396,1751235033155,-271.019748,0.00018148,2]
[368609397,1751235033164,-271.019748,0.00018148,2]
[368609398,1751235033174,-151.0,0.00018187,2]
[368609399,1751235033188,-151.0,0.00018187,2]
[368609400,1751235033198,-151.0,0.00018187,2]
[368609401,1751235033208,-152.925093,0.00018187,2]
[368609402,1751235033218,-151.0,0.00018187,2]
[368609403,1751235033229,-151.0,0.00018187,2]
[368609404,1751235033239,-151.0,0.00018187,2]
[368609405,1751235033248,-526.16059125,0.00018187,2]
[368609406,1751235033258,-171.3037616,0.00018187,2]
[368609407,1751235033269,-155.116666,0.00018187,2]
[368609408,1751235033278,-151.0,0.00018187,2]
[368609409,1751235033288,-246.236657,0.00018187,2]
[368609410,1751235033298,-516.667056,0.00018187,2]
[368609411,1751235033308,-516.667056,0.00018187,2]
[368609412,1751235033318,-151.0,0.00018192,2]
[368609413,1751235033328,-151.0,0.00018192,2]
[368609414,1751235033338,-151.0,0.00018192,2]
[368609415,1751235033348,-151.0,0.00018192,2]
[368609416,1751235033358,-151.0,0.00018192,2]
[368609417,1751235033369,-151.0,0.00018192,2]
[368609418,1751235033378,-150.01,0.00018203,2]
[368609419,1751235033388,-151.0,0.00018203,2]
[368609420,1751235033398,-5185.0,0.00018203,2]
[368609421,1751235033407,-151.0,0.00018213,2]
[368609422,1751235033417,-151.0,0.00018213,2]
[368609423,1751235033427,-151.0,0.00018213,2]
[368609424,1751235033437,-151.0,0.00018213,2]
[368609425,1751235033447,-151.0,0.00018213,2]
[368609426,1751235033456,-1863.346106,0.00018213,2]
[368609427,1751235033466,-1863.346106,0.00018213,2]
[368609428,1751235033476,-151.0,0.00018213,2]
[368609429,1751235033486,-151.0,0.00018213,2]
[368609430,1751235033496,-151.0,0.00018213,2]
[368609431,1751235033506,-151.0,0.00018213,2]
[368609432,1751235033515,-166.520822,0.00018213,2]
[368609433,1751235033525,-500.0,0.00018213,2]
[368609434,1751235033535,-200.0,0.00018213,2]
[368609435,1751235033545,-500.0,0.00018213,2]
[368609436,1751235033555,-150.0,0.00018213,2]
[368609437,1751235033564,-500.0,0.00018213,2]
[368609438,1751235033575,-524.0,0.00018213,2]
[368609439,1751235033585,-150.0,0.00018213,2]
[368609440,1751235033594,-150.0,0.00018213,2]
[368609441,1751235033604,-166.98873093,0.00018213,2]
[368609442,1751235033614,-151.0,0.00018213,2]
[368609443,1751235033625,-155.888235,0.00018213,2]
[368609444,1751235033635,-151.0,0.00018213,2]
[368609445,1751235033645,-162.216446,0.00018213,2]
[368609446,1751235033654,-500.0,0.00018213,2]
[368609447,1751235033665,-500.0,0.00018213,2]
[368609448,1751235033675,-473.0,0.00018213,2]
[368609449,1751235033684,-1749.0,0.00018213,2]
[368609450,1751235033694,-151.67367,0.00018213,2]
[368609451,1751235033703,-500.0,0.00018213,2]
[368609452,1751235033713,-151.0,0.00018213,2]
[368609453,1751235033723,-500.0,0.00018213,2]
[368609454,1751235033733,-500.0,0.00018213,2]
[368609455,1751235033742,-204.82197656,0.00018213,2]
[368609456,1751235033752,-550.0,0.00018213,2]
[368609457,1751235033762,-516.667056,0.00018213,2]
[368609458,1751235033772,-516.667056,0.00018213,2]
[368609459,1751235033783,-550.0,0.00018257,2]
[368609460,1751235033798,-2214.27239733,0.00018258,2]
[368609461,1751235033808,-151.0,0.00018281,2]
[368609462,1751235033818,-151.0,0.00018281,2]
[368609463,1751235033828,-151.0,0.00018281,2]
[368609464,1751235033839,-1981.0,0.00018283,2]
[368609465,1751235033849,-153.339427,0.00018283,2]
[368609466,1751235033859,-151.0,0.00018283,2]
[368609467,1751235033869,-516.667056,0.00018283,2]
[368609468,1751235033880,-516.667056,0.00018283,2]
[368609469,1751235033890,-151.0,0.00018284,2]
[368609470,1751235033899,-151.0,0.00018284,2]
[368609471,1751235033909,-151.0,0.00018284,2]
[368609472,1751235033919,-226.50052,0.00018287,2]
[368609473,1751235033929,-151.0,0.00018287,2]
[368609474,1751235033939,-1923.324442,0.00018287,2]
[368609475,1751235033949,-151.0,0.00018287,2]
[368609476,1751235033960,-151.0,0.00018287,2]
[368609477,1751235033970,-151.0,0.00018287,2]
[368609478,1751235033979,-215.413799,0.00018287,2]
[368609479,1751235033989,-151.0,0.00018287,2]
[368609480,1751235033998,-230.31234,0.00018287,2]
[368609481,1751235034008,-7067.2127235,0.00018287,2]
[368609482,1751235034018,-11734.6771682,0.00018287,2]
[368609483,1751235034027,-59147.85579525,0.00018287,2]
[368609484,1751235036436,-685.0,0.00018287,2]
[368609505,1751235037796,-1294.88,0.00018277,2]
[368609506,1751235037805,-268.50687502,0.00018287,2]
[368609507,1751235037858,-810.00112626,0.00018287,2]
[368609508,1751235037915,-475.19999915,0.00018287,2]
[368609509,1751235037973,-2947.0,0.00018287,2]
[368609510,1751235038039,-22482.09999999,0.00018287,2]
[368609695,1751235040116,-87107.48996675,0.00018287,2]
[368609702,1751235040170,-442.27142083,0.00018287,2]
[368609721,1751235040340,-704.8465,0.00018287,2]
[368609734,1751235040457,-6163.90034625,0.00018287,2]
[368609736,1751235040467,-151.0,0.00018287,2]
[368609738,1751235040475,-151.0,0.00018287,2]
[368609740,1751235040484,-151.0,0.00018287,2]
[368609742,1751235040494,-151.0,0.00018287,2]
[368609744,1751235040503,-151.0,0.00018287,2]
[368609746,1751235040515,-516.667056,0.00018287,2]
[368609748,1751235040525,-516.667056,0.00018287,2]
[368609750,1751235040534,-151.893054,0.00018292,2]
[368609752,1751235040543,-151.726846,0.00018292,2]
[368609754,1751235040553,-151.0,0.00018292,2]
[368609756,1751235040562,-151.0,0.00018292,2]
[368609758,1751235040571,-151.392039,0.00018292,2]
[368609760,1751235040580,-26.70167452,0.00018292,2]
[368609762,1751235040591,-124.29832548,0.00018292,2]
[368609764,1751235040601,-855.50237,0.00018292,2]
[368609766,1751235040610,-855.50237,0.00018292,2]
[368609768,1751235040620,-151.0,0.00018292,2]
[368609770,1751235040630,-151.0,0.00018292,2]
[368609772,1751235040639,-151.972488,0.00018292,2]
[368609774,1751235040649,-151.0,0.00018292,2]
[368609776,1751235040658,-151.0,0.00018292,2]
[368609778,1751235040667,-151.0,0.00018292,2]
[368609780,1751235040676,-355.81657,0.00018292,2]
[368609782,1751235040686,-355.81657,0.00018292,2]
[368609784,1751235040695,-151.0,0.00018292,2]
[368609786,1751235040704,-151.0,0.00018292,2]
[368609788,1751235040713,-151.0,0.00018292,2]
[368609790,1751235040722,-289.242713,0.00018292,2]
[368609792,1751235040731,-289.242713,0.00018292,2]
[368609794,1751235040741,-152.533519,0.00018292,2]
[368609796,1751235040750,-151.0,0.00018292,2]
[368609798,1751235040759,-151.0,0.00018292,2]
[368609800,1751235040768,-516.667056,0.00018292,2]
[368609802,1751235040777,-151.0,0.00018292,2]
[368609804,1751235040787,-516.667056,0.00018292,2]
[368609806,1751235040800,-151.0,0.00018295,2]
[368609808,1751235040809,-151.0,0.00018295,2]
[368609810,1751235040819,-491.349388,0.00018295,2]
[368609812,1751235040828,-491.349388,0.00018295,2]
[368609814,1751235040838,-153.372044,0.00018295,2]
[368609816,1751235040848,-151.0,0.00018295,2]
[368609818,1751235040857,-151.0,0.00018295,2]
[368609820,1751235040867,-151.0,0.00018295,2]
[368609822,1751235040877,-151.0,0.00018295,2]
[368609824,1751235040887,-780.88622425,0.00018295,2]
[368609826,1751235040900,-1082.45988175,0.00018295,2]
[368609828,1751235040909,-1863.346106,0.00018295,2]
[368609830,1751235040919,-151.0,0.00018295,2]
[368609832,1751235040928,-151.0,0.00018295,2]
[368609834,1751235040938,-151.0,0.00018295,2]
[368609836,1751235040947,-151.0,0.00018295,2]
[368609874,1751235040957,-151.0,0.00018295,2]
[368609876,1751235041299,-151.0,0.00018295,2]
[368609878,1751235041308,-463.96139,0.00018295,2]
[368609880,1751235041318,-463.96139,0.00018295,2]
[368609882,1751235041327,-271.019748,0.00018295,2]
[368609884,1751235041336,-271.019748,0.00018295,2]
[368609886,1751235041345,-151.0,0.00018295,2]
[368609888,1751235041354,-151.0,0.00018295,2]
[368609890,1751235041363,-151.0,0.00018295,2]
[368609892,1751235041374,-3169.01560087,0.00018295,2]
[368609894,1751235041385,-921.22705913,0.00018295,2]
[368609896,1751235041394,-516.667056,0.00018295,2]
[368609898,1751235041403,-516.667056,0.00018295,2]
[368609900,1751235041413,-151.0,0.00018304,2]